Cogmind - Beta 13 @@@ ROGUE MODE // 2024.04.03 @ 15:38:40 Player: CogEmotions! Result: Destroyed by KX-SM5(R) with Subdweller Shrapnel Launcher Performance ------------- Evolutions (0) 0 Regions Visited (3) 600 Robots Destroyed (28) 140 Value Destroyed (604) 604 Prototype IDs (0) 0 Alien Tech Used (0) 0 Bonus (63) 63 TOTAL SCORE: 1407 Bonus ------- Follower Combat Kills 137 Friendly Fire -74 Cogmind --------- Core Integrity 0/250 Matter 252/300 Energy 100/100 System Corruption 0% Temperature Cool (0) Movement Walking (260) Ox2 Location -10/Subcaves Parts ------- > --- POWER (1) -------- (None) > --- PROPULSION (2) --- Aluminum Leg > --- UTILITY (2) ------ Improved Heat Sink Large Storage Unit > --- WEAPON (2) ------- Subdweller Machine Gun Barrage Gun > --- INVENTORY (15) --- Improved Heat Sink Makeshift Hacking Suite Battle Rifle Peak State ------------ > --- POWER ------------ Ion Engine > --- PROPULSION ------- Aluminum Leg Aluminum Leg > --- UTILITY ---------- Improved Heat Sink Large Storage Unit > --- WEAPON ----------- Battle Rifle Subdweller Machine Gun > --- INVENTORY -------- Ion Engine Improved Heat Sink Makeshift Hacking Suite Barrage Gun [Rating: 12] Favorites ----------- Power Ion Engine Engine Ion Engine Propulsion Light Treads Treads Light Treads Leg Aluminum Leg Utility Large Storage Unit Device Sensor Array Storage Large Storage Unit Weapon Assault Rifle Ballistic Gun Assault Rifle Launcher Rocket Launcher Special Weapon Mining Laser Build | -11 -10 -10 -10 ------- Run | Yrd Mat Min Sub Slots Evolved . | . . . . Power . | . . . . Propulsion . | . . . . Utility . | . . . . Weapon . | . . . . Parts Attached 22 | 6 6 2 8 Power 3 | 1 . 1 1 Engine 3 | 1 . 1 1 Core . | . . . . Reactor . | . . . . Propulsion 4 | 2 . . 2 Treads 2 | 2 . . . Leg 2 | . . . 2 Wheel . | . . . . Hover . | . . . . Flight . | . . . . Utility 4 | 1 2 . 1 Device 2 | . 1 . 1 Storage 2 | 1 1 . . Processor . | . . . . Hackware . | . . . . Protection . | . . . . Artifact . | . . . . Weapon 11 | 2 4 1 4 Energy Gun . | . . . . Energy Cannon . | . . . . Ballistic Gun 7 | 2 2 . 3 Ballistic Cannon . | . . . . Launcher 3 | . 1 1 1 Special Weapon 1 | . 1 . . Impact Weapon . | . . . . Slashing Weapon . | . . . . Piercing Weapon . | . . . . Special Melee Weapon . | . . . . Unidentified Prototypes . | . . . . Parts Lost 8 | . . . 8 Power 2 | . . . 2 Propulsion 2 | . . . 2 Utility 1 | . . . 1 Weapon 3 | . . . 3 Highest Loss Streak 3 | . . . 3 To Critical Strikes . | . . . . Average Slot Usage (%) 93 | . 94 100 89 Engine 13 | . 14 14 13 Treads 23 | . 28 28 16 Leg 2 | . . . 6 Device 10 | . 8 14 9 Storage 14 | . 14 14 14 Ballistic Gun 18 | . 18 14 21 Launcher 8 | . 8 14 5 Naked Turns . | . . . . Heaviest Build 33 | 14 31 32 33 Greatest Support 40 | 40 40 40 40 Greatest Overweight (x) 3 | . . . 3 Average Overweight (x) . | . . . . Largest Inventory Capacity 15 | 8 15 15 15 Average Capacity 14 | 6 13 15 15 Most Carried 5 | 5 4 4 5 Average Carried 2 | 1 2 3 3 Final Capacity 15 | 8 15 15 15 Final Carried 3 | 1 3 2 3 Class Distribution -------------------- 89% | Mutant 10% | Scavenger-Mutant Dominant Class ---------------- Mutant | -10/Materials Mutant | -10/Mines Mutant | -10/Subcaves Resources | -11 -10 -10 -10 ----------- Run | Yrd Mat Min Sub Matter Collected 898 | 205 174 57 462 Remotely . | . . . . Salvage Created 557 | . 326 111 120 Parts 42 | . 20 10 12 Haulers Intercepted . | . . . . Recyclers Shooed . | . . . . Parts Field Recycled . | . . . . Retrieved Matter . | . . . . Parts Self-Destructed 11 | . . . 11 Prevented . | . . . . Kills | -11 -10 -10 -10 ------- Run | Yrd Mat Min Sub Combat Hostiles Destroyed 19 | . 7 5 7 Guns 12 | . 6 2 4 AOE 7 | . 1 3 3 Classes Destroyed 8 | . 4 1 3 Worker 1 | . . 1 . Recycler 2 | . 2 . . Turret 2 | . . . 2 Watcher 3 | . 3 . . Swarmer 11 | . 3 3 5 Grunt 6 | . 4 2 . Subdweller 2 | . . . 2 Zionite 1 | . . . 1 Best Kill Streak 6 | . 6 4 6 Combat Bots Only 4 | . 3 3 4 Max Kills in Single Turn 3 | . 3 2 3 Gunslinging . | . . . . Exploded 2 | . 1 2 2 Melee . | . . . . Uniques/NPCs Destroyed . | . . . . Combat | -11 -10 -10 -10 -------- Run | Yrd Mat Min Sub Hostile Shots Fired 134 | . 40 24 70 Missed 43 | . 10 9 24 Damage Taken 1482 | . 382 168 932 Core 300 | . 59 10 231 Absorbed by Shields . | . . . . Core Remaining (%) 100 | 100 . . . Volleys Fired 78 | . 32 11 35 Largest 2 | . 2 2 2 Hottest 100 | . 100 53 58 Shots Fired 131 | . 51 17 63 Gun 99 | . 39 11 49 Cannon . | . . . . Launcher 27 | . 7 6 14 Special 5 | . 5 . . Kinetic 99 | . 39 11 49 Thermal 5 | . 5 . . Explosive 27 | . 7 6 14 Electromagnetic . | . . . . Robot Hit Streak 15 | . 11 6 15 Robot Miss Streak 3 | . 3 2 3 Penetration Max . | . . . . Secondary Targets . | . . . . Shots Hit Robots 77 | . 27 10 40 Core Hits 49 | . 18 8 23 Critical Kills . | . . . . Critical Parts Destroyed 2 | . 2 . . Critical Strikes 2 | . 2 . . Destroy 2 | . 2 . . Melee Attacks . | . . . . Impact . | . . . . Slashing . | . . . . Piercing . | . . . . Sneak Attacks . | . . . . Combat Hostiles . | . . . . Follow-up Attacks . | . . . . Damage Inflicted 2360 | . 833 353 1174 Guns 975 | . 328 100 547 Cannons . | . . . . Explosions 1377 | . 497 253 627 Melee . | . . . . Ramming 8 | . 8 . . Kinetic 975 | . 328 100 547 Thermal 301 | . 301 . . Explosive 1076 | . 196 253 627 Electromagnetic . | . . . . Impact . | . . . . Slashing . | . . . . Piercing . | . . . . Highest Corruption . | . . . . Average Corruption . | . . . . Corruption Purged . | . . . . Corruption Blocked . | . . . . Overload Shots . | . . . . Overflow Damage 125 | . 99 . 26 Projectiles . | . . . . Explosions 125 | . 99 . 26 Melee . | . . . . Knockbacks . | . . . . Impact . | . . . . Kinetic . | . . . . Secondary . | . . . . Self-Inflicted Damage 58 | . 28 24 6 Shots 3 | . 1 1 1 Rammed 1 | . 1 . . Targets Rammed 1 | . 1 . . Kicked . | . . . . Crushed . | . . . . Highest Temperature 40 | . 40 . 1 Average Temperature 12 | . 12 . 1 Received Heat Transfer 351 | . 165 30 156 Siege Activations . | . . . . Robots Corrupted . | . . . . Combat Hostiles . | . . . . Parts Fried . | . . . . Impact Corruptions . | . . . . Robots Melted . | . . . . Combat Hostiles . | . . . . Parts Melted . | . . . . Heat Transferred 200 | . 200 . . Parts Sabotaged . | . . . . Parts Stolen . | . . . . Parts Stripped . | . . . . Power Chain Reactions . | . . . . Alert | -11 -10 -10 -10 ------- Run | Yrd Mat Min Sub Peak Influence 263 | . 263 228 . Initial 67 | . . 67 . Average 105 | . 109 115 . Maximum Alert Level 1 | . 1 1 . Low Security (%) 79 | 100 82 70 . Level 1 20 | . 17 29 . Level 2 . | . . . . Level 3 . | . . . . Level 4 . | . . . . Level 5 . | . . . . High Security . | . . . . Max Security . | . . . . Squads Dispatched 1 | . 1 . . Investigation . | . . . . Extermination . | . . . . Reinforcement 1 | . 1 . . Assault . | . . . . Garrison . | . . . . Intercept . | . . . . Searches Triggered . | . . . . Construction Impeded . | . . . . Haulers Reinforced . | . . . . Active Scanning Responses . | . . . . Cargo Convoy Interrupts . | . . . . Stealth | -11 -10 -10 -10 --------- Run | Yrd Mat Min Sub Distress Signals 2 | . 2 . . Communications Jammed . | . . . . Distress Signals . | . . . . Times Spotted 54 | . 13 5 36 Peak Tracking Total 6 | . 4 3 6 Tactical Retreats 2 | . . . 2 Traps | -11 -10 -10 -10 ------- Run | Yrd Mat Min Sub Traps Triggered 1 | . . . 1 Indirectly . | . . . . Trap Hack Attempts . | . . . . Triggered . | . . . . Disarmed . | . . . . Reprogrammed . | . . . . Reused . | . . . . Traps Extracted . | . . . . Installed . | . . . . Triggered . | . . . . Machines | -11 -10 -10 -10 ---------- Run | Yrd Mat Min Sub Machines Disabled 9 | . 5 . 4 Max in Single Turn 5 | . 5 . 2 Machines Repaired . | . . . . Machines Dismantled . | . . . . Machines Sabotaged . | . . . . Overloaded Fab Kills . | . . . . Hacking | -11 -10 -10 -10 --------- Run | Yrd Mat Min Sub Machines Accessed 2 | . 2 . . Terminals 2 | . 2 . . Fabricators . | . . . . Repair Stations . | . . . . Recycling Units . | . . . . Scanalyzers . | . . . . Garrison Access . | . . . . Total Hacks 6 | . 6 . . Successful 4 | . 4 . . Failed 2 | . 2 . . Catastrophic . | . . . . Database Lockouts . | . . . . Manual . | . . . . Terminals 6 | . 6 . . Fabricators . | . . . . Repair Stations . | . . . . Recycling Units . | . . . . Scanalyzers . | . . . . Garrison Access . | . . . . Terminal Hacks 4 | . 4 . . Record 2 | . 2 . . Hauler Manifests 1 | . 1 . . Zone Layout 1 | . 1 . . Fabricator Hacks . | . . . . Repair Station Hacks . | . . . . Recycling Unit Hacks . | . . . . Scanalyzer . | . . . . Garrison Access Hacks . | . . . . Unauthorized Hacks . | . . . . Terminals . | . . . . Fabricators . | . . . . Repair Stations . | . . . . Recycling Units . | . . . . Scanalyzers . | . . . . Garrison Access . | . . . . Data Cores Recovered . | . . . . Used . | . . . . Hacking Detections . | . . . . Full Trace Events . | . . . . Feedback Events . | . . . . Feedback Blocked . | . . . . Robot Schematics Acquired . | . . . . Robots Built . | . . . . Authchips . | . . . . Time . | . . . . Total Robot Build Rating . | . . . . Part Schematics Acquired . | . . . . Parts Built . | . . . . Authchips . | . . . . Time . | . . . . Total Part Build Rating . | . . . . Parts Repaired . | . . . . Time . | . . . . Parts Recycled . | . . . . Recycled Matter . | . . . . Retrieved Matter . | . . . . Retrieved Components . | . . . . Parts Scanalyzed . | . . . . Part Schematics Acquired . | . . . . Parts Damaged . | . . . . Bothacking | -11 -10 -10 -10 ------------ Run | Yrd Mat Min Sub Used RIF Installer . | . . . . Robots Hacked . | . . . . Non-combat . | . . . . Combat . | . . . . Robot Hacks Applied . | . . . . Relay Couplers Released . | . . . . Fabnet Peak Effective % . | . . . . Robots Rewired . | . . . . Allies Hacked . | . . . . Hacks Repelled . | . . . . Allies | -11 -10 -10 -10 -------- Run | Yrd Mat Min Sub Total Allies 5 | . . 5 . Largest Group 5 | . . 5 5 Highest-Rated Group 86 | . . 86 86 Highest-Rated Ally 31 | . . 31 31 Total Orders . | . . . . Ally Attacks 34 | . . . 34 Total Damage 303 | . . . 303 Kills 6 | . . . 6 Allies Corrupted . | . . . . Allies Melted . | . . . . Intel | -11 -10 -10 -10 ------- Run | Yrd Mat Min Sub Robot Analysis Total . | . . . . Derelict Logs Recovered . | . . . . Drone Launches . | . . . . Drone Recoveries . | . . . . Exploration | -11 -10 -10 -10 ------------- Run | Yrd Mat Min Sub Turns Passed 2069 | 76 661 474 858 Spaces Moved 1054 | 54 346 267 387 Core 20 | 20 . . . Treads 939 | 34 346 267 292 Legs 95 | . . . 95 Wheels . | . . . . Hover . | . . . . Flight . | . . . . Fastest Speed 50 | 50 160 160 160 Average Speed 168 | 119 160 160 189 Slowest Speed 330 | 160 160 160 330 Overloaded Moves . | . . . . Propulsion Burnouts . | . . . . Robots Hopped . | . . . . Cave-ins Triggered . | . . . . Exploration Rate (%) 37 | 4 67 42 36 Regions Visited 3 Branch Regions 2 Pre-discovered Areas 1 | . . . 1 Known Exits Taken . | . . . . Unknown Exits Taken 3 | 1 1 1 . Scrap Searched 1 | . . . 1 Spaces Dug 11 | . 11 . . Terrain Destroyed 179 | . 57 47 75 Melee . | . . . . Projectile 6 | . 5 . 1 AOE 173 | . 52 47 74 Terrain Rammed . | . . . . Walls Destroyed . | . . . . Machines Disabled . | . . . . Actions | -11 -10 -10 -10 --------- Run | Yrd Mat Min Sub Total 1204 | 65 392 297 450 Wait 26 | . . 15 11 Move 1051 | 53 345 266 387 Hop . | . . . . Pick Up 20 | 6 5 1 8 Fast Attach 1 | 1 . . . Attach 14 | 5 3 . 6 Detach 1 | . 1 . . Swap 7 | . 3 2 2 Drop 5 | . 2 2 1 Fire 78 | . 32 11 35 Melee . | . . . . Ram . | . . . . Kick . | . . . . Crush 1 | . 1 . . Escape Stasis . | . . . . Rewire . | . . . . Trap . | . . . . Miscellaneous . | . . . . Route ------- -11/Scrapyard -10/Materials (discovered 4 exits: [*Mat x2] / [*Min x2]) -10/Mines (discovered 3 exits: [*Mat x2] / [*Sub]) -10/Subcaves (discovered 1 exit: [*Rec]) History --------- Turn | Location | Event 8 | -11/Scrapyard | Discovered new exit (range 15) 77 | -11/Scrapyard | Entered Materials 283 | -10/Materials | Discovered new exit (range 16) 318 | -10/Materials | Build established: Mutant 508 | -10/Materials | Discovered new exit (range 15) 631 | -10/Materials | Discovered new exit (range 11) 725 | -10/Materials | Discovered new exit (range 9) 738 | -10/Materials | Entered Mines 758 | -10/Mines | Received a Rocket Launcher from a helpful Derelict 826 | -10/Mines | Discovered new exit (range 8) 1028 | -10/Mines | Discovered new exit (range 7) 1183 | -10/Mines | Assisted by bots powering up and referring to "LRC-V3" 1194 | -10/Mines | Discovered new exit (range 9) 1212 | -10/Mines | Entered Subcaves 1212 | -10/Subcaves | Accompanied by 5 allies 1217 | -10/Subcaves | Led the pair of lost Derelicts to an unsafe place 1300 | -10/Subcaves | Learned location of Zion (-7) 1300 | -10/Subcaves | Met a Zionite searching for "candidates" 1354 | -10/Subcaves | Discovered new exit (range 16) 1371 | -10/Subcaves | Lost 3 allies 1456 | -10/Subcaves | Core integrity fell below 50% 1583 | -10/Subcaves | Ambushed by Subdweller buried in earth 1583 | -10/Subcaves | Ambushed by Subdweller buried in earth 1586 | -10/Subcaves | Ambushed by Subdweller buried in earth 1617 | -10/Subcaves | Lost 3 parts (1n1u1w) 2031 | -10/Subcaves | Core integrity fell below 20% 2070 | -10/Subcaves | Destroyed by KX-SM5(R) with Subdweller Shrapnel Launcher Last Messages --------------- FI-NPB(O) collects matter. Dropped Lgt. Treads. FI-NPB(O) collects matter. Acquired Mak. Hacking Suite. Acquired Barrage Gun. Searching scrap... Found Shrapnel Trap. Found 37 Matter. Acquired 30 matter. 8J-G8K(R): "UDINAU!" KX-SM5(R) emerges from concealment. Ion Engine destroyed. C4-470(R) destroyed. 0Y-M48(R) destroyed. KX-SM5(R) affixes Scrap Shield Fragment to Scrap Shield. Aluminum Leg destroyed. KX-SM5(R) affixes Scrap Shield Fragment to Scrap Shield. Ion Engine destroyed. Map ----- +----------------------------------------------------+ | ?????????????????????????????????????????????????? | | ?????????????????????????????????????????????????? | | ?????????????????????????????????????????????????? | | ?????????????????????????????????????????????????? | | ?????????????????????????????????????????????????? | | ?????????????????????????????????????????????????? | | ?????????????????????????????????????????????????? | | ?????????????????????????????????????????????????? | | ?????????????????????????????????????????????????? | | ?????????????????????????????????????????????????? | | ?????????????????????????????????????????????????? | | ?????????????????????????????????????????????????? | | ?????????????????????????????????????????????????? | | ?????????????????????????????????????????????????? | | ?????????????????????????????????????????????????? | | ?????????????????????????????????????????????????? | | ?????????????????????????????????" ""????????????? | | ?????????????????????????????????"<< #???????????? | | ??????????????????????????######"<<<<#???????????? | | ??????????????????????????# # <<#????????????? | | ???????????????????????##### <#????????????? | | ??????????????????????## ;; ##????????????? | | ????????????????????###; ;####?????????????? | | ????????????##??????#; ; ### #???????????? | | ???????????#" "#####;# #???????????? | | ??????####?# ;; ; @ ;# #??????????? | | ??????# ## ; #?????????? | | ??????# *%R= #?????????? | | ??????# !!%!;# #;# #????????? | | ??????# ;;"## ; ### #???????? | | ?????## """## ## ##???????? | | ?????# ###### ##????????? | | ????# ##???# ?#?????????? | | ## [ ###?## ## ?????####??? | | ?? ??# #### ##?# #???????# ##?? | | ??? ???# ####??## ### #??????### ### | | ????????# ???????### ## #????### # ## | | ??????? ?????????## # ##???## # ### | | ????? ?????????# # #???## #?### | | ???? ?????????## # ##### ^ #???? | | ???# ###?????????# # # # #???? | | ??# #????????????## # ^ ##???? | | ?? ?????????????# ## ##??? | | ?? ??????????????## ### # # ##?? | | ????## ?????????????## ## ####### ^ #?? | | ??????#??????????????# ## #### # = # ##?? | | ?????????????????????## ^ ^ ###??? | | ??????????????????????## ### ## ##????? | | ???????????????????????##### ##?##?#####?????? | | ???????????????????????????#######???????????????? | +----------------------------------------------------+ Best States ------------- Heat Dissipation 39 Energy Generation 10 Energy Capacity 250 Matter Stores 300 Matter Capacity 300 Sight Range 16 Robot Scan Range 14 Terrain Scan Density 10 Evasion (%) 50 Recoil Reduction 2 Item Schematics ----------------- None Robot Schematics ------------------ None Fabricated ------------ Nothing Alien Tech Used ----------------- None Achievements -------------- Backstab The More The Merrier Challenges ------------ None Game ------ Seed TimingRiotClaymores Manual? 0 Play Time 00:22:16 Cumulative 6.7 hours Start 2024.04.03 @ 14:39:37 End 2024.04.03 @ 15:38:40 Sessions 1 Manual Loads 0 Difficulty Rogue Special Mode None Game No. 17 Rogue 17 Adventurer 0 Explorer 0 Win Type - Total 0 Types 0/0/0/0/0/0/0/0/0 Lore% 3 Gallery% 13 Achievement% 11 Wizard Run 0 Options --------- Layout 1 ASCII 0 Keyboard 0 Movement Mouse Keybinds 0 Fullscreen 1 Font 24/Smallcaps Map View 50x35 Zoom Use 0% Tactical HUD 0 Map Filters NONE Filters NONE Steam 1 RUN: 5c780a9f-5b8e-43d2-85ac-1a87c63940ed